Cogmind - Beta 13 @@@ ROGUE MODE // 2024.04.19 @ 18:48:01 Player: DGSTER Result: Destroyed by Y-45 Defender with Beam Rifle Performance ------------- Evolutions (1) 500 Regions Visited (5) 1000 Robots Destroyed (78) 390 Value Destroyed (2723) 2723 Prototype IDs (9) 180 Alien Tech Used (0) 0 Bonus (1558) 1558 TOTAL SCORE: 6351 Bonus ------- High Alert Combat Kills 301 Follower Combat Kills 57 Entered Garrisons 200 Used RIF Installer 1000 Cogmind --------- Core Integrity 0/400 Matter 290/300 Energy 280/280 System Corruption 12% Temperature Cool (9) Movement Treading (160) Location -9/Recycling Parts ------- > --- POWER (1) -------- Heavy Ion Engine > --- PROPULSION (2) --- Light Treads Light Treads > --- UTILITY (4) ------ Scrap Engine Light Regenerative Plating Relay Coupler [Grunt] (40) > --- WEAPON (2) ------- Shock Rifle Advanced Beam Cannon > --- INVENTORY (5) ---- Heavy Ion Engine Core Shielding Rocket Launcher Mini Grenade Launcher Peak State ------------ > --- POWER ------------ Heavy Ion Engine > --- PROPULSION ------- Light Treads Light Treads > --- UTILITY ---------- Scrap Engine Light Regenerative Plating Relay Coupler [Grunt] > --- WEAPON ----------- Shock Rifle Advanced Beam Cannon > --- INVENTORY -------- Heavy Ion Engine Rocket Launcher Mini Grenade Launcher [Rating: 36] Favorites ----------- Power Heavy Ion Engine Engine Heavy Ion Engine Propulsion Light Treads Treads Light Treads Leg Aluminum Leg Utility Small Storage Unit Device Heat Sink Storage Small Storage Unit Hackware Relay Coupler [Grunt] Protection Light Regenerative Plating Weapon Advanced Beam Cannon Energy Gun Improved Medium Laser Energy Cannon Advanced Beam Cannon Ballistic Gun Improved Assault Rifle Ballistic Cannon Light Cannon Launcher Mini Grenade Launcher Build | -11 -10 -9 -9 -9 -9 ------- Run | Yrd Mat Mat Sto Gar Rec Slots Evolved 2 | . . 2 . . . Power . | . . . . . . Propulsion . | . . . . . . Utility 2 | . . 2 . . . Weapon . | . . . . . . Parts Attached 48 | 6 2 2 20 17 1 Power 6 | 1 . 1 3 1 . Engine 6 | 1 . 1 3 1 . Core . | . . . . . . Reactor . | . . . . . . Propulsion 12 | 2 . . 4 6 . Treads 8 | . . . 4 4 . Leg 4 | 2 . . . 2 . Wheel . | . . . . . . Hover . | . . . . . . Flight . | . . . . . . Utility 14 | 1 . 1 6 5 1 Device 5 | . . . 3 1 1 Storage 1 | 1 . . . . . Processor . | . . . . . . Hackware 3 | . . . . 3 . Protection 5 | . . 1 3 1 . Artifact . | . . . . . . Weapon 16 | 2 2 . 7 5 . Energy Gun 4 | . . . 1 3 . Energy Cannon 3 | . . . 2 1 . Ballistic Gun 6 | 2 2 . 2 . . Ballistic Cannon 2 | . . . 2 . . Launcher 1 | . . . . 1 . Special Weapon . | . . . . . . Impact Weapon . | . . . . . . Slashing Weapon . | . . . . . . Piercing Weapon . | . . . . . . Special Melee Weapon . | . . . . . . Unidentified Prototypes 4 | . . . 3 1 . Parts Lost 13 | . 1 . 5 7 . Power 1 | . 1 . . . . Propulsion 3 | . . . 1 2 . Utility 7 | . . . 4 3 . Weapon 2 | . . . . 2 . Highest Loss Streak 3 | . 1 . 2 3 . To Critical Strikes . | . . . . . . Average Slot Usage (%) 87 | . 82 68 86 95 88 Engine 11 | . 11 11 10 11 11 Treads 17 | . . . 21 19 22 Leg 5 | . 28 22 . 2 . Device 7 | . . . 9 7 9 Storage 10 | . 14 11 11 8 . Hackware 4 | . . . . 11 12 Protection 10 | . . 2 10 13 11 Energy Gun 2 | . . . . 7 11 Energy Cannon 8 | . . . 8 13 11 Ballistic Gun 9 | . 28 22 11 . . Ballistic Cannon 1 | . . . 2 . . Naked Turns . | . . . . . . Heaviest Build 27 | 12 14 19 27 26 20 Greatest Support 40 | 20 20 20 40 40 40 Greatest Overweight (x) 2 | . . . 1 2 . Average Overweight (x) . | . . . . . . Largest Inventory Capacity 8 | 8 8 8 8 8 5 Average Capacity 7 | 5 8 8 8 7 5 Most Carried 8 | 5 5 7 8 8 5 Average Carried 5 | 2 4 4 5 5 3 Final Capacity 8 | 8 8 8 8 5 5 Final Carried 8 | 3 5 6 8 3 4 Class Distribution -------------------- 92% | Mutant 7% | Scavenger-Mutant Dominant Class ---------------- Mutant | -10/Materials Mutant | -9/Materials Mutant | -9/Storage Mutant | -9/Garrison Mutant | -9/Recycling Resources | -11 -10 -9 -9 -9 -9 ----------- Run | Yrd Mat Mat Sto Gar Rec Matter Collected 1364 | 231 125 130 580 265 33 Remotely 381 | . . . 381 . . Salvage Created 2691 | . 178 180 1411 922 . Parts 158 | . 15 10 80 53 . Haulers Intercepted 5 | . 1 . 4 . . Recyclers Shooed 3 | . . . 3 . . Parts Field Recycled . | . . . . . . Retrieved Matter . | . . . . . . Parts Self-Destructed . | . . . . . . Prevented . | . . . . . . Kills | -11 -10 -9 -9 -9 -9 ------- Run | Yrd Mat Mat Sto Gar Rec Combat Hostiles Destroyed 67 | . 7 4 27 29 . Melee 3 | . . . 1 2 . Guns 46 | . 7 4 23 12 . Cannons 11 | . . . 3 8 . AOE 6 | . . . . 6 . Classes Destroyed 11 | . 3 2 4 2 . Hauler 5 | . 1 . 4 . . Recycler 3 | . . . 3 . . Mechanic 1 | . . . 1 . . Operator 1 | . . . 1 . . Watcher 1 | . . . 1 . . Swarmer 21 | . 6 . 7 8 . Grunt 26 | . 1 2 10 13 . Brawler 4 | . . 1 1 2 . Duelist 2 | . . . . 2 . Sentry 11 | . . 1 9 1 . Programmer 3 | . . . . 3 . Best Kill Streak 8 | . 3 3 8 8 . Combat Bots Only 8 | . 3 3 8 8 . Max Kills in Single Turn 2 | . 1 2 2 2 . Gunslinging 1 | . . 1 1 . . Exploded 2 | . . . . 2 . Melee 1 | . . . 1 1 . Uniques/NPCs Destroyed . | . . . . . . Combat | -11 -10 -9 -9 -9 -9 -------- Run | Yrd Mat Mat Sto Gar Rec Hostile Shots Fired 347 | . 57 24 104 161 1 Missed 89 | . 21 5 24 39 . Damage Taken 3215 | . 299 261 907 1733 15 Core 452 | . 52 62 168 155 15 Absorbed by Shields . | . . . . . . Regen/Repaired (Parts) 389 | . . . . 340 49 Core Remaining (%) 89 | 100 79 . . . . Volleys Fired 171 | . 20 13 73 65 . Largest 2 | . 2 2 2 2 . Hottest 136 | . 46 46 136 136 . Shots Fired 331 | . 40 26 146 119 . Gun 219 | . 40 26 114 39 . Cannon 106 | . . . 32 74 . Launcher 6 | . . . . 6 . Special . | . . . . . . Kinetic 194 | . 40 26 128 . . Thermal 128 | . . . 18 110 . Explosive 6 | . . . . 6 . Electromagnetic 3 | . . . . 3 . Robot Hit Streak 28 | . 4 9 28 7 . Robot Miss Streak 4 | . 4 1 4 4 . Penetration Max . | . . . . . . Secondary Targets 5 | . 1 1 3 . . Max Gunslinging Chain 1 | . 1 1 1 . . Shots Hit Robots 208 | . 20 22 102 64 . Core Hits 102 | . 10 7 52 33 . Critical Kills 2 | . . . 2 . . Critical Parts Destroyed 1 | . 1 . . . . Critical Strikes 6 | . 1 . 3 2 . Burn 2 | . . . . 2 . Destroy 3 | . 1 . 2 . . Blast 1 | . . . 1 . . Melee Attacks . | . . . . . . Impact . | . . . . . . Slashing . | . . . . . . Piercing . | . . . . . . Sneak Attacks . | . . . . . . Combat Hostiles . | . . . . . . Follow-up Attacks . | . . . . . . Damage Inflicted 3994 | . 272 327 1677 1718 . Guns 2347 | . 267 327 1296 457 . Cannons 1188 | . . . 329 859 . Explosions 385 | . . . . 385 . Melee . | . . . . . . Ramming 74 | . 5 . 52 17 . Kinetic 2034 | . 267 327 1440 . . Thermal 1470 | . . . 185 1285 . Explosive 385 | . . . . 385 . Electromagnetic 31 | . . . . 31 . Impact . | . . . . . . Slashing . | . . . . . . Piercing . | . . . . . . Highest Corruption 12 | . . . 1 12 12 Average Corruption 4 | . . . 1 4 12 Corruption Purged . | . . . . . . Corruption Blocked . | . . . . . . Effects 31 | . . . 3 22 6 Message Errors 3 | . . . . 2 1 Matter Fused 7 | . . . 1 4 2 Heat Flow Errors 8 | . . . . 7 1 Energy Discharges 6 | . . . 2 3 1 Data Loss (minor) 3 | . . . . 3 . Data Loss (major) 2 | . . . . 1 1 Misfires 1 | . . . . 1 . Alerts 1 | . . . . 1 . Overload Shots . | . . . . . . Overflow Damage 25 | . . . . 25 . Projectiles 7 | . . . . 7 . Explosions 18 | . . . . 18 . Melee . | . . . . . . Knockbacks 2 | . . . 1 1 . Impact 2 | . . . 1 1 . Kinetic . | . . . . . . Secondary . | . . . . . . Self-Inflicted Damage 152 | . . . . 152 . Shots 3 | . . . . 3 . Rammed 18 | . . . 12 6 . Targets Rammed 27 | . 3 . 16 8 . Kicked 3 | . 3 . . . . Crushed 6 | . . . 4 2 . Highest Temperature 550 | . . 19 135 550 197 Average Temperature 124 | . . 9 25 148 102 Received Heat Transfer 606 | . 30 114 240 213 9 Effects 11 | . . . . 11 . Shutdowns 2 | . . . . 2 . Energy Bleed 4 | . . . . 4 . Matter Decay 1 | . . . . 1 . Short Circuit 1 | . . . . 1 . Damage (minor) 1 | . . . . 1 . Damage (major) 2 | . . . . 2 . Siege Activations . | . . . . . . Robots Corrupted . | . . . . . . Combat Hostiles . | . . . . . . Parts Fried . | . . . . . . Impact Corruptions . | . . . . . . Robots Melted 1 | . . . . 1 . Combat Hostiles 1 | . . . . 1 . Parts Melted 8 | . . . . 8 . Heat Transferred 2812 | . . . 333 2479 . Parts Sabotaged . | . . . . . . Parts Stolen . | . . . . . . Parts Stripped . | . . . . . . Power Chain Reactions . | . . . . . . Alert | -11 -10 -9 -9 -9 -9 ------- Run | Yrd Mat Mat Sto Gar Rec Peak Influence 1017 | . 208 142 429 1017 457 Initial 457 | . . 3 59 230 457 Average 346 | . 141 80 232 645 372 Maximum Alert Level 3 | . 1 . 2 3 2 Low Security (%) 39 | 100 86 100 47 . 28 Level 1 27 | . 14 . 42 18 . Level 2 17 | . . . 10 31 71 Level 3 15 | . . . . 49 . Level 4 . | . . . . . . Level 5 . | . . . . . . High Security . | . . . . . . Max Security . | . . . . . . Squads Dispatched 7 | . 1 . 6 . . Investigation . | . . . . . . Extermination . | . . . . . . Reinforcement 4 | . 1 . 3 . . Assault . | . . . . . . Garrison 3 | . . . 3 . . Intercept . | . . . . . . Searches Triggered . | . . . . . . Construction Impeded . | . . . . . . Haulers Reinforced . | . . . . . . Active Scanning Responses . | . . . . . . Cargo Convoy Interrupts . | . . . . . . Stealth | -11 -10 -9 -9 -9 -9 --------- Run | Yrd Mat Mat Sto Gar Rec Distress Signals 1 | . . . 1 . . Communications Jammed . | . . . . . . Distress Signals . | . . . . . . Times Spotted 92 | . 11 5 40 31 5 Peak Tracking Total 7 | . 4 3 7 7 5 Tactical Retreats 3 | . . . 2 1 . Traps | -11 -10 -9 -9 -9 -9 ------- Run | Yrd Mat Mat Sto Gar Rec Traps Triggered 3 | . . . 1 2 . Indirectly . | . . . . . . Trap Hack Attempts . | . . . . . . Triggered . | . . . . . . Disarmed 10 | . . . 10 . . Reprogrammed . | . . . . . . Reused . | . . . . . . Traps Extracted . | . . . . . . Installed . | . . . . . . Triggered . | . . . . . . Machines | -11 -10 -9 -9 -9 -9 ---------- Run | Yrd Mat Mat Sto Gar Rec Machines Disabled 7 | . . . 3 4 . Max in Single Turn 2 | . . . 1 2 . Garrison Relay 2 | . . . . 2 . Phase Generator 1 | . . . . 1 . Machines Repaired . | . . . . . . Machines Dismantled . | . . . . . . Machines Sabotaged . | . . . . . . Overloaded Fab Kills . | . . . . . . Hacking | -11 -10 -9 -9 -9 -9 --------- Run | Yrd Mat Mat Sto Gar Rec Machines Accessed 20 | . 4 2 9 2 3 Terminals 17 | . 3 2 8 2 2 Fabricators . | . . . . . . Repair Stations . | . . . . . . Recycling Units 2 | . 1 . . . 1 Scanalyzers . | . . . . . . Garrison Access 1 | . . . 1 . . Total Hacks 59 | . 13 9 28 2 7 Successful 32 | . 6 3 16 2 5 Failed 27 | . 7 6 12 . 2 Catastrophic 4 | . 2 . 2 . . Database Lockouts . | . . . . . . Manual 12 | . 1 5 4 . 2 Terminals 54 | . 11 9 26 2 6 Fabricators . | . . . . . . Repair Stations . | . . . . . . Recycling Units 3 | . 2 . . . 1 Scanalyzers . | . . . . . . Garrison Access 2 | . . . 2 . . Terminal Hacks 28 | . 4 3 15 2 4 Robot Analysis 1 | . 1 . . . . Prototype ID Bank 3 | . 1 . 2 . . Open Door 2 | . . . 1 1 . Branch Access Points 1 | . . 1 . . . Emergency Access Points 2 | . . 1 . 1 . Alert Level 9 | . 1 1 5 . 2 Unreport Threat 4 | . . . 2 . 2 Locate Traps 2 | . 1 . 1 . . Disarm Traps 2 | . . . 2 . . Dispatch Records 1 | . . . 1 . . Transport Status 1 | . . . 1 . . Fabricator Hacks . | . . . . . . Repair Station Hacks . | . . . . . . Recycling Unit Hacks 2 | . 1 . . . 1 Report Inventory 2 | . 1 . . . 1 Scanalyzer . | . . . . . . Garrison Access Hacks 1 | . . . 1 . . Unlock Access 1 | . . . 1 . . Unauthorized Hacks 1 | . 1 . . . . Terminals . | . . . . . . Fabricators . | . . . . . . Repair Stations . | . . . . . . Recycling Units 1 | . 1 . . . . Reject 1 | . 1 . . . . Scanalyzers . | . . . . . . Garrison Access . | . . . . . . Data Cores Recovered 1 | . . . 1 . . Used . | . . . . . . Hacking Detections 16 | . 3 2 7 1 3 Full Trace Events 1 | . . . . . 1 Feedback Events . | . . . . . . Feedback Blocked . | . . . . . . Robot Schematics Acquired . | . . . . . . Robots Built . | . . . . . . Authchips . | . . . . . . Time . | . . . . . . Total Robot Build Rating . | . . . . . . Part Schematics Acquired . | . . . . . . Parts Built . | . . . . . . Authchips . | . . . . . . Time . | . . . . . . Total Part Build Rating . | . . . . . . Parts Repaired . | . . . . . . Time . | . . . . . . Parts Recycled . | . . . . . . Recycled Matter . | . . . . . . Retrieved Matter . | . . . . . . Retrieved Components . | . . . . . . Parts Scanalyzed . | . . . . . . Part Schematics Acquired . | . . . . . . Parts Damaged . | . . . . . . Bothacking | -11 -10 -9 -9 -9 -9 ------------ Run | Yrd Mat Mat Sto Gar Rec Used RIF Installer 2 | . . . . 2 . Patrol Navigation 1 | . . . . 1 . Robots Hacked . | . . . . . . Non-combat . | . . . . . . Combat . | . . . . . . Robot Hacks Applied . | . . . . . . Relay Couplers Released 8 | . . . . 8 . Machine Destruction 8 | . . . . 8 . Attached 3 | . . . . 3 . Fabnet Peak Effective % . | . . . . . . Robots Rewired . | . . . . . . Allies Hacked . | . . . . . . Hacks Repelled . | . . . . . . Allies | -11 -10 -9 -9 -9 -9 -------- Run | Yrd Mat Mat Sto Gar Rec Total Allies 1 | . . . 1 . . Largest Group 1 | . . . 1 1 . Highest-Rated Group 100 | . . . 100 100 . Highest-Rated Ally 100 | . . . 100 100 . Total Orders . | . . . . . . Ally Attacks 9 | . . . 9 . . Total Damage 255 | . . . 255 . . Kills 3 | . . . 3 . . Allies Corrupted . | . . . . . . Allies Melted . | . . . . . . Intel | -11 -10 -9 -9 -9 -9 ------- Run | Yrd Mat Mat Sto Gar Rec Robot Analysis Total 1 | . 1 . . . . Derelict Logs Recovered . | . . . . . . Drone Launches . | . . . . . . Drone Recoveries . | . . . . . . Exploration | -11 -10 -9 -9 -9 -9 ------------- Run | Yrd Mat Mat Sto Gar Rec Turns Passed 3703 | 65 400 195 1723 1174 146 Spaces Moved 1954 | 45 270 119 874 558 88 Core 7 | 7 . . . . . Treads 1419 | . . . 832 499 88 Legs 528 | 38 270 119 42 59 . Wheels . | . . . . . . Hover . | . . . . . . Flight . | . . . . . . Fastest Speed 50 | 50 120 120 120 160 160 Average Speed 151 | 109 120 120 158 164 160 Slowest Speed 260 | 120 120 120 190 260 160 Overloaded Moves . | . . . . . . Propulsion Burnouts . | . . . . . . Robots Hopped . | . . . . . . Cave-ins Triggered . | . . . . . . Exploration Rate (%) 48 | 4 68 11 96 84 26 Regions Visited 5 Branch Regions 2 Pre-discovered Areas 1 | . . . 1 . . Known Exits Taken 2 | . . 1 1 . . Unknown Exits Taken 2 | 1 1 . . . . Scrap Searched . | . . . . . . Spaces Dug . | . . . . . . Terrain Destroyed 58 | . . . . 58 . Melee . | . . . . . . Projectile . | . . . . . . AOE 58 | . . . . 58 . Terrain Rammed . | . . . . . . Walls Destroyed . | . . . . . . Machines Disabled . | . . . . . . Actions | -11 -10 -9 -9 -9 -9 --------- Run | Yrd Mat Mat Sto Gar Rec Total 2361 | 61 306 145 1064 691 94 Wait 83 | . 6 9 44 24 . Move 1948 | 44 269 118 873 556 88 Hop . | . . . . . . Pick Up 53 | 10 4 3 23 11 2 Fast Attach . | . . . . . . Attach 48 | 6 2 2 20 17 1 Detach 3 | . . . . 3 . Swap . | . . . . . . Drop 27 | 1 2 . 15 7 2 Fire 171 | . 20 13 73 65 . Melee . | . . . . . . Ram . | . . . . . . Kick 3 | . 3 . . . . Crush 24 | . . . 16 8 . Escape Stasis . | . . . . . . Rewire 1 | . . . . . 1 Trap . | . . . . . . Miscellaneous . | . . . . . . Route ------- -11/Scrapyard -10/Materials (discovered 2 exits: *Mat / [*Min]) -9/Materials (discovered 4 exits: Min x2 / *Sto x2) -9/Storage (discovered 3 exits: [*Mat] / *Rec / Gar) -9/Garrison (discovered 2 exits: *Rec x2) -9/Recycling History --------- Turn | Location | Event 4 | -11/Scrapyard | Discovered new exit (range 15) 66 | -11/Scrapyard | Entered Materials 244 | -10/Materials | Discovered new exit (range 13) 313 | -10/Materials | Build established: Mutant 399 | -10/Materials | Discovered new exit (range 14) 466 | -10/Materials | Entered another Materials area 466 | -9/Materials | Evolved 2 slots: Utility x2 544 | -9/Materials | Discovered new exit (range 10) 579 | -9/Materials | Identified exit to Mines 579 | -9/Materials | Identified exit to Storage 661 | -9/Materials | Entered Storage 1567 | -9/Storage | Destroyed 8 combat bots 1653 | -9/Storage | Garrison activated, responded to threat 1681 | -9/Storage | Core integrity fell below 50% 1721 | -9/Storage | Identified exit to Garrison 1742 | -9/Storage | Met 01-MTF 1803 | -9/Storage | Discovered new exit (range 4) 1836 | -9/Storage | Learned location of Armory (-3) 1903 | -9/Storage | Found Prototype Protection 1904 | -9/Storage | Identified Lgt. Regenerative Plating 2005 | -9/Storage | Discovered new exit (range 6) 2384 | -9/Storage | Entered Garrison 2384 | -9/Garrison | Accompanied by 1 ally (01-MTF) 2389 | -9/Garrison | 01-MTF left 2509 | -9/Garrison | Installed Relay Interface Framework 2537 | -9/Garrison | Phase Generator disabled 2559 | -9/Garrison | Expanded RIF knowledge: Patrol Navigation 2605 | -9/Garrison | Garrison Relay disabled 2711 | -9/Garrison | Lost 3 parts (1n1u1w) 2806 | -9/Garrison | Triggered checkpoint 2914 | -9/Garrison | Core integrity fell below 20% 2936 | -9/Garrison | Triggered checkpoint 2962 | -9/Garrison | Triggered checkpoint 3002 | -9/Garrison | Destroyed 8 combat bots 3042 | -9/Garrison | Triggered checkpoint 3088 | -9/Garrison | Discovered new exit (range 10) 3110 | -9/Garrison | Triggered checkpoint 3338 | -9/Garrison | System corruption reached 10% 3381 | -9/Garrison | Garrison Relay disabled 3475 | -9/Garrison | Discovered new exit (range 15) 3522 | -9/Garrison | Triggered checkpoint 3558 | -9/Garrison | Entered Recycling 3570 | -9/Recycling | Found Scrap Engine 3704 | -9/Recycling | Destroyed by Y-45 Defender with Beam Rifle Last Messages --------------- Matter reserves: 0 Inventory: Terrain Scan Processor (68%) Imp. Light Cannon (68%) VTOL Module (28%) System corrupted: Matter fused (-10). Connecting with Terminal... System corrupted: Energy discharge (-75). Connecting with Terminal... >>Alert(Check) Current Alert Level: 2-F >>Alert(Purge) Purged threat record, alert level lowered. >>Alert(Purge) Purged threat record, alert level lowered. >>Alert(Check) Current Alert Level: Low Security 02:/Z&W8MI/,SM/1>8FYTAD8T0M:KB Attempting to rewire H-55 Commando. Y-45 Defender springs to life. Map ----- +----------------------------------------------------+ | ????????????########## ##########?? | | ??????????????##?????# #??????#???? | | ???????????####T###### ###### ###?? | | ???????????# # # #?? | | ???????????# """ T # # #?? | | ???????????# """ + + #?? | | ???????????# """ # # #?? | | ???????????# # # #?? | | ???????????########### # #?? | | ?????????????????????# # #?? | | ?????????????????????# # #?? | | ?????????############# # #?? | | ???????? ##########?? | | ???????? ###????????? | | ???????? ]]#????????? | | ?????????###### ]]#????????? | | ??????????????# ]]#????????? | | ??????????????# ###????????? | | ??????????????# #??????????? | | ??????????????# #??????????? | | ??????????????# #??#######?? | | ??????????????# #? g Y#?? | | ???????????Y### #? g ! #?? | | ????????? # k kb#?? | | ????????? # i #?? | | ????????? r@ i h! #?? | | ????????? #h g #?? | | ?????????? # u h i#?? | | ?????????? #?g rY!p#?? | | ??????????? #? % #?? | | ??????????? #??#######?? | | ??????????? ??????????? | | ????????????""" """ ??????????? | | ?????????????""""""" ??????????? | | ?????????????????"" ??????????? | | ?????????????????? ??????????? | | ?????????????????? ??????????? | | ????????????????? ??????????? | | ?????????????????? ? ??????????? | | ?????????????????????? ??????????? | | ????????????????????????????????????? | | ????????????????????????????????????? | | ????????????????????????????????????? | | ????????????????????????????????????? | | ????????????????????????????????????? | | ????????????????????????????????????? | | ????????????????????????????????????? | | ????????????????????????????????????? | | ????????????????????????????????????? | | ????????????????????????????????????? | +----------------------------------------------------+ Best States ------------- Heat Dissipation 38 Energy Generation 14 Energy Capacity 280 Matter Stores 300 Matter Capacity 300 Sight Range 16 Terrain Scan Density 10 Armor Coverage 300 Core Shielding 20 Evasion (%) 55 Recoil Reduction 2 Relay Coupler Types 2 Relay Coupler Value 76 Item Schematics ----------------- None Robot Schematics ------------------ None Fabricated ------------ Nothing Alien Tech Used ----------------- None Achievements -------------- None Challenges ------------ None Game ------ Seed SurveybotFlyingRouter Manual? 0 Play Time 00:39:01 Cumulative 12.7 hours Start 2024.04.19 @ 18:09:18 End 2024.04.19 @ 18:48:01 Sessions 1 Manual Loads 0 Difficulty Rogue Special Mode None Game No. 12 Rogue 11 Adventurer 1 Explorer 0 Win Type - Total 0 Types 0/0/0/0/0/0/0/0/0 Lore% 21 Gallery% 23 Achievement% 20 Wizard Run 0 Options --------- Layout 1 ASCII 0 Keyboard 0 Movement Numpad Keybinds 0 Fullscreen 1 Font 24/Smallcaps Map View 50x35 Zoom Use 0% Tactical HUD 0 Map Filters NONE Filters NONE Steam 1 RUN: 44742122-1e83-4777-93b4-66b997b2ef6b